Cogmind - Beta 14 @@@ ROGUE MODE // 2024.12.16 @ 20:52:49 Player: xack Result: Destroyed by G-34 Mercenary with Small Laser Performance ------------- Evolutions (0) 0 Regions Visited (1) 200 Robots Destroyed (14) 70 Value Destroyed (344) 344 Prototype IDs (2) 40 Alien Tech Used (0) 0 Bonus (0) 0 TOTAL SCORE: 654 Bonus ------- None Cogmind --------- Core Integrity 0/250 Matter 269/300 Energy 67/100 System Corruption 1% Temperature Warm (158) Movement Hovering (56) Location -10/Materials Parts ------- > --- POWER (1) -------- (None) > --- PROPULSION (2) --- Hover Unit Hover Unit > --- UTILITY (2) ------ Small Storage Unit Propulsion Shielding > --- WEAPON (2) ------- EM Pulse Gun Light Assault Rifle > --- INVENTORY (8) ---- Compact Wheel Compact Wheel Medium Storage Unit Hardened Light Armor Plating Hardened Light Armor Plating Light Assault Rifle Grenade Launcher Peak State ------------ > --- POWER ------------ Light Ion Engine > --- PROPULSION ------- Hover Unit Hover Unit > --- UTILITY ---------- Small Storage Unit Hardened Light Armor Plating > --- WEAPON ----------- Light Assault Rifle Light Assault Rifle > --- INVENTORY -------- Aluminum Leg Compact Wheel Compact Wheel Hardened Light Armor Plating Hardened Light Armor Plating Assault Rifle Light Assault Rifle Grenade Launcher [Rating: 9] Favorites ----------- Power Ion Engine Engine Ion Engine Propulsion Aluminum Leg Leg Aluminum Leg Hover Unit Hover Unit Utility Small Storage Unit Storage Small Storage Unit Protection Hardened Light Armor Plating Weapon Light Assault Rifle Energy Gun Medium Laser Ballistic Gun Light Assault Rifle Build | -11 -10 ------- Run | Yrd Mat Slots Evolved . | . . Power . | . . Propulsion . | . . Utility . | . . Weapon . | . . Parts Attached 22 | 6 16 Power 2 | 1 1 Engine 2 | 1 1 Core . | . . Reactor . | . . Propulsion 4 | 2 2 Treads . | . . Leg 2 | 2 . Wheel . | . . Hover 2 | . 2 Flight . | . . Utility 7 | 1 6 Device . | . . Storage 2 | 1 1 Processor . | . . Hackware . | . . Protection 5 | . 5 Artifact . | . . Weapon 9 | 2 7 Energy Gun 3 | . 3 Energy Cannon . | . . Ballistic Gun 6 | 2 4 Ballistic Cannon . | . . Launcher . | . . Special Weapon . | . . Impact Weapon . | . . Slashing Weapon . | . . Piercing Weapon . | . . Special Melee Weapon . | . . Unidentified Prototypes . | . . Parts Lost 6 | . 6 Power 2 | . 2 Propulsion 1 | . 1 Utility . | . . Weapon 3 | . 3 Highest Loss Streak 2 | . 2 To Critical Strikes . | . . Average Slot Usage (%) 95 | . 95 Engine 14 | . 14 Leg 19 | . 19 Hover 8 | . 8 Storage 14 | . 14 Protection 10 | . 10 Energy Gun 8 | . 8 Ballistic Gun 18 | . 18 Peak Build Rating 9 | 6 9 Average Rating 7 | 4 7 On Entrance 3 | . 6 Naked Turns . | . . Heaviest Build 19 | 13 19 Greatest Support 20 | 20 20 Greatest Overweight (x) 4 | 4 1 Average Overweight (x) . | 1 . Largest Inventory Capacity 8 | 8 8 Average Capacity 7 | 7 8 Most Carried 8 | 6 8 Average Carried 6 | 3 6 Final Capacity 8 | 8 8 Final Carried 7 | 4 7 Class Distribution -------------------- 100% | Mutant Dominant Class ---------------- Mutant | -10/Materials Resources | -11 -10 ----------- Run | Yrd Mat Matter Collected 549 | 260 289 Remotely . | . . Salvage Created 474 | . 474 Parts 24 | . 24 Haulers Intercepted 1 | . 1 Recyclers Shooed 3 | . 3 Parts Field Recycled . | . . Retrieved Matter . | . . Parts Self-Destructed . | . . Prevented . | . . Kills | -11 -10 ------- Run | Yrd Mat Combat Hostiles Destroyed 10 | . 10 Guns 10 | . 10 Classes Destroyed 5 | . 5 Hauler 1 | . 1 Operator 1 | . 1 Watcher 2 | . 2 Swarmer 3 | . 3 Grunt 7 | . 7 Best Kill Streak 3 | . 3 Combat Bots Only 3 | . 3 Max Kills in Single Turn 1 | . 1 Gunslinging . | . . Exploded . | . . Melee . | . . Uniques/NPCs Destroyed . | . . Combat | -11 -10 -------- Run | Yrd Mat Hostile Shots Fired 121 | . 121 Missed 32 | . 32 Damage Taken 1039 | . 1039 Core 257 | . 257 Absorbed by Shields . | . . Redirected to Shielding 3 | . 3 Core Remaining (%) 100 | 100 . Volleys Fired 94 | . 94 Largest 2 | . 2 Hottest 70 | . 70 Shots Fired 170 | . 170 Gun 170 | . 170 Cannon . | . . Launcher . | . . Special . | . . Kinetic 106 | . 106 Thermal 44 | . 44 Explosive . | . . Electromagnetic 20 | . 20 Robot Hit Streak 7 | . 7 Robot Miss Streak 5 | . 5 Penetration Max . | . . Secondary Targets 2 | . 2 Max Gunslinging Chain 1 | . 1 Shots Hit Robots 97 | . 97 Core Hits 31 | . 31 Critical Kills . | . . Critical Parts Destroyed . | . . Critical Strikes 2 | . 2 Burn 1 | . 1 Corrupt 1 | . 1 Melee Attacks . | . . Impact . | . . Slashing . | . . Piercing . | . . Sneak Attacks . | . . Combat Hostiles . | . . Follow-up Attacks . | . . Damage Inflicted 1135 | . 1135 Guns 1135 | . 1135 Cannons . | . . Explosions . | . . Melee . | . . Ramming . | . . Kinetic 678 | . 678 Thermal 266 | . 266 Explosive . | . . Electromagnetic 191 | . 191 Impact . | . . Slashing . | . . Piercing . | . . Highest Corruption 1 | . 1 Average Corruption 1 | . 1 Corruption Purged . | . . Corruption Blocked . | . . Overload Shots . | . . Overflow Damage . | . . Projectiles . | . . Explosions . | . . Melee . | . . Knockbacks . | . . Impact . | . . Kinetic . | . . Secondary . | . . Self-Inflicted Damage . | . . Shots . | . . Rammed . | . . Targets Rammed . | . . Kicked . | . . Crushed . | . . Highest Temperature 390 | . 390 Average Temperature 112 | . 112 Received Heat Transfer 492 | . 492 Effects 4 | . 4 Shutdowns 2 | . 2 Energy Bleed 1 | . 1 Damage (minor) 1 | . 1 Siege Activations . | . . Robots Corrupted . | . . Combat Hostiles . | . . Parts Fried 1 | . 1 Impact Corruptions . | . . Robots Melted . | . . Combat Hostiles . | . . Parts Melted 3 | . 3 Heat Transferred 851 | . 851 Parts Sabotaged . | . . Parts Stolen . | . . Parts Stripped . | . . Power Chain Reactions . | . . Alert | -11 -10 ------- Run | Yrd Mat Peak Influence 207 | . 207 Initial . | . . Average 77 | . 89 Maximum Alert Level 1 | . 1 Low Security (%) 99 | 100 98 Level 1 . | . 1 Level 2 . | . . Level 3 . | . . Level 4 . | . . Level 5 . | . . High Security . | . . Max Security . | . . Squads Dispatched 2 | . 2 Investigation . | . . Extermination . | . . Reinforcement 2 | . 2 Assault . | . . Garrison . | . . Intercept . | . . Searches Triggered . | . . Construction Impeded . | . . Haulers Reinforced . | . . Active Scanning Responses . | . . Cargo Convoy Interrupts . | . . Stealth | -11 -10 --------- Run | Yrd Mat Distress Signals 2 | . 2 Communications Jammed . | . . Distress Signals . | . . Times Spotted 18 | . 18 Peak Tracking Total 5 | . 5 Tactical Retreats 1 | . 1 Traps | -11 -10 ------- Run | Yrd Mat Traps Triggered 2 | . 2 Indirectly . | . . Trap Hack Attempts . | . . Triggered . | . . Disarmed . | . . Reprogrammed . | . . Reused . | . . Traps Extracted . | . . Installed . | . . Triggered . | . . Machines | -11 -10 ---------- Run | Yrd Mat Machines Disabled . | . . Max in Single Turn . | . . Machines Repaired . | . . Machines Dismantled . | . . Machines Sabotaged . | . . Overloaded Fab Kills . | . . Hacking | -11 -10 --------- Run | Yrd Mat Machines Accessed 2 | . 2 Terminals 2 | . 2 Fabricators . | . . Repair Stations . | . . Recycling Units . | . . Scanalyzers . | . . Garrison Access . | . . Total Hacks 4 | . 4 Successful 3 | . 3 Failed 1 | . 1 Catastrophic . | . . Database Lockouts . | . . Manual 1 | . 1 Terminals 4 | . 4 Fabricators . | . . Repair Stations . | . . Recycling Units . | . . Scanalyzers . | . . Garrison Access . | . . Terminal Hacks 3 | . 3 Prototype ID Bank 1 | . 1 Locate Traps 1 | . 1 Hauler Manifests 1 | . 1 Fabricator Hacks . | . . Repair Station Hacks . | . . Recycling Unit Hacks . | . . Scanalyzer . | . . Garrison Access Hacks . | . . Unauthorized Hacks . | . . Terminals . | . . Fabricators . | . . Repair Stations . | . . Recycling Units . | . . Scanalyzers . | . . Garrison Access . | . . Data Cores Recovered . | . . Used . | . . Hacking Detections 2 | . 2 Full Trace Events . | . . Feedback Events . | . . Feedback Blocked . | . . Robot Schematics Acquired . | . . Robots Built . | . . Authchips . | . . Time . | . . Total Robot Build Rating . | . . Part Schematics Acquired . | . . Parts Built . | . . Authchips . | . . Time . | . . Total Part Build Rating . | . . Parts Repaired . | . . Time . | . . Parts Recycled . | . . Recycled Matter . | . . Retrieved Matter . | . . Retrieved Components . | . . Parts Scanalyzed . | . . Part Schematics Acquired . | . . Parts Damaged . | . . Bothacking | -11 -10 ------------ Run | Yrd Mat Used RIF Installer . | . . Robots Hacked . | . . Non-combat . | . . Combat . | . . Robot Hacks Applied . | . . Relay Couplers Released . | . . Fabnet Peak Effective % . | . . Robots Rewired . | . . Allies Hacked . | . . Hacks Repelled . | . . Allies | -11 -10 -------- Run | Yrd Mat Total Allies . | . . Largest Group . | . . Highest-Rated Group . | . . Highest-Rated Ally . | . . Total Orders . | . . Ally Attacks . | . . Total Damage . | . . Kills . | . . Allies Corrupted . | . . Allies Melted . | . . Intel | -11 -10 ------- Run | Yrd Mat Robot Analysis Total . | . . Derelict Logs Recovered . | . . Drone Launches . | . . Drone Recoveries . | . . Exploration | -11 -10 ------------- Run | Yrd Mat Turns Passed 657 | 86 571 Spaces Moved 345 | 45 300 Core 23 | 23 . Treads . | . . Legs 187 | 22 165 Wheels . | . . Hover 135 | . 135 Flight . | . . Fastest Speed 50 | 50 56 Average Speed 101 | 159 92 Slowest Speed 250 | 250 120 Overloaded Moves . | . . Propulsion Burnouts . | . . Robots Hopped . | . . Cave-ins Triggered . | . . Exploration Rate (%) 24 | 5 43 Regions Visited 1 Branch Regions . Pre-discovered Areas . | . . Known Exits Taken . | . . Unknown Exits Taken 1 | 1 . Scrap Searched . | . . Spaces Dug . | . . Terrain Destroyed . | . . Melee . | . . Projectile . | . . AOE . | . . Terrain Rammed . | . . Walls Destroyed . | . . Machines Disabled . | . . Actions | -11 -10 --------- Run | Yrd Mat Total 497 | 58 439 Wait 8 | . 8 Move 344 | 44 300 Hop . | . . Pick Up 22 | 8 14 Fast Attach 4 | 2 2 Attach 13 | 4 9 Detach 2 | . 2 Swap 5 | . 5 Drop 5 | . 5 Fire 94 | . 94 Melee . | . . Ram . | . . Kick . | . . Crush . | . . Escape Stasis . | . . Rewire . | . . Trap . | . . Miscellaneous . | . . Route ------- -11/Scrapyard -10/Materials (discovered 2 exits: [*Min x2]) History --------- Turn | Location | Event 10 | -11/Scrapyard | Discovered new exit (range 16) 87 | -11/Scrapyard | Entered Materials 87 | -10/Materials | Discovered new exit (range 7) 237 | -10/Materials | Discovered new exit (range 16) 312 | -10/Materials | Build established: Mutant 384 | -10/Materials | Core integrity fell below 50% 546 | -10/Materials | Core integrity fell below 20% 658 | -10/Materials | Destroyed by G-34 Mercenary with Small Laser Last Messages --------------- Rifle. 00623_ Destroyed Datajack. 00624_ R-06 Scavenger collects Lgt. Treads. 00625_ O-16 Technician destroyed. 00627_ K-01 Serf collects debris. 00635_ K-01 Serf destroyed. 00637_ Destroyed Heat Sink. 00638_ K-01 Serf collects debris. 00644_ K-01 Serf destroyed. 00650_ EM Pulse Gun destroyed. 00651_ G-34 Mercenary heat spikes uncontrollably. 00651_ G-34 Mercenary overheating. 00652_ Lgt. Ion Engine destroyed. 00654_ G-34 Mercenary overheating. 00655_ Ion Engine melted. 00655_ Sml. Laser fried. 00655_ G-34 Mercenary destroyed. 00655_ Switching to secondary target: G-34 Mercenary. Map ----- +----------------------------------------------------+ | | | | | | | | | ???????????????????????????????????? | | ???????????????????????????????????? | | ???????????????????????????????????? | | ???????????????????????????????????? | | ????###############?????????????#### | | ????? +?????#######?# | | #####+## #?######## #?# | | # # #?# #?# | | # ! + #?# < #?# | | # ####### #?# #?# " | | # #?????# #?######## #?# "R | | # "T" #?????# #????????## ##?# "" | | # ####### #?????##### #??# | | ##+###### #?????#!! #??#### | | ?# # #?????#! ####### | | ?# # #?????#!! | | ?# # #?????#!! | | ?# # #?????#!! | | ?#####+## #?????#!! ####### | | ?????# = #?????##### # % | | ?????# % #?????????# # | | ?????# @ !#??######## # "" | | ?????# =%#### # T" | | ?????# =%! %g / "" | | ?????# ######### # | | ?????# ######### ############## | | ?????# ## # # #####?? | | ?????# ## # # """ # ? | | ???? + ## = " / / """ # ? | | ??? #^^^^## T # # """ # | | ?? # ## " / ^# # | | ? ?# ## # ^^#?###### | | ###??# ######### ###????# | | ?????# #??????# #????####### | | ?????# #??????#!! !#????????#"" | | ?????# ???????## !!!##????????#" | | ?????# ????????######?????????#"! | | ?????+ ???????????????????????#"" | | ???????# #???????????????????????#"! | | ?????????????????????????????????#" | | ?????????????????????????????????#"" | | ??????????????????????????########## | | ??????????????????????????# | | ??????????????????????????# | | ??????????????????????????# = | | ??????????????????????????# | +----------------------------------------------------+ Best States ------------- Heat Dissipation 25 Energy Generation 10 Energy Capacity 250 Matter Stores 300 Matter Capacity 300 Sight Range 16 Terrain Scan Density 10 Armor Coverage 150 Propulsion Shielding 33 Evasion (%) 55 Item Schematics ----------------- None Robot Schematics ------------------ None Fabricated ------------ Nothing Alien Tech Used ----------------- None Achievements -------------- None Challenges ------------ None Game ------ Seed CombatCoolingPendant Manual? 0 Play Time 00:13:48 Cumulative 31.6 hours Start 2024.12.16 @ 20:36:25 End 2024.12.16 @ 20:52:49 Sessions 1 Manual Loads 0 Difficulty Rogue Special Mode None Game No. 17 Rogue 17 Adventurer 0 Explorer 0 Win Type - Total 0 Types 0/0/0/0/0/0/0/0/0 Lore% 14 Gallery% 24 Achievement% 21 Wizard Run 0 Options --------- Layout 1 ASCII 0 Keyboard 0 Movement Mouse Keybinds 0 Fullscreen 1 Font 32/Smallcaps Map View 50x35 Zoom Use 0% Tactical HUD 1 Map Filters NONE Filters NONE Steam 1 RUN: 7d7e61f0-beaf-49ea-8537-5baa1e92d099